fUST/lending_fUST_20250717
["ID","MTS","AMOUNT","RATE_DAILY","PERIOD"]
[372600595,1752700250767,-1017.13,0.00020935,2]
[372600596,1752700250776,-1944.16,0.00020935,2]
[372600597,1752700250786,-3094.04,0.00020935,2]
[372600598,1752700250796,-460.0,0.00020935,2]
[372600599,1752700250806,-460.0,0.00020935,2]
[372600600,1752700250816,-460.0,0.00020935,2]
[372600601,1752700250826,-460.0,0.00020935,2]
[372600602,1752700250835,-1107.75,0.00020935,2]
[372600603,1752700250844,-460.0,0.00020935,2]
[372600604,1752700250854,-502.62,0.00020935,2]
[372600605,1752700250864,-460.0,0.00020935,2]
[372600606,1752700250873,-460.0,0.00020935,2]
[372600607,1752700250883,-460.0,0.00020935,2]
[372600608,1752700250892,-1224.39,0.00020935,2]
[372600609,1752700250902,-432.38,0.00020935,2]
[372600610,1752700250911,-460.0,0.00020935,2]
[372600611,1752700250923,-320.63307763,0.00020935,2]
[372600612,1752700250932,-1081.46,0.00020935,2]
[372600613,1752700250942,-1328.52,0.00020935,2]
[372600614,1752700250951,-2000.0,0.00021016,2]
[372600615,1752700251055,-460.0,0.00021032,2]
[372600616,1752700251065,-500.0,0.00021032,2]
[372600617,1752700251074,-644.36,0.00021032,2]
[372600618,1752700251084,-437.25,0.00021032,2]
[372600619,1752700251093,-2763.5,0.00021032,2]
[372600620,1752700251102,-460.0,0.00021032,2]
[372600621,1752700251112,-460.0,0.00021032,2]
[372600622,1752700251122,-460.0,0.00021032,2]
[372600623,1752700251132,-1051.93,0.00021032,2]
[372600624,1752700251142,-460.0,0.00021032,2]
[372600625,1752700251152,-460.0,0.00021032,2]
[372600626,1752700251161,-460.0,0.00021032,2]
[372600627,1752700251172,-2606.4,0.00021032,2]
[372600628,1752700251182,-234.23,0.00021032,2]
[372600629,1752700251191,-178.331,0.00021033,2]
[372600630,1752700251201,-1862.017,0.00021033,2]
[372600631,1752700251210,-17450.72722299,0.00021034,2]
[372600632,1752700251221,-460.0,0.00021043,2]
[372600633,1752700251231,-460.0,0.00021043,2]
[372600634,1752700251240,-460.0,0.00021043,2]
[372600635,1752700251250,-460.0,0.00021043,2]
[372600636,1752700251260,-359.06,0.00021043,2]
[372600637,1752700251270,-460.0,0.00021043,2]
[372600638,1752700251280,-460.0,0.00021043,2]
[372600639,1752700251289,-460.0,0.00021043,2]
[372600640,1752700251299,-460.0,0.00021043,2]
[372600641,1752700251308,-460.0,0.00021043,2]
[372600642,1752700251318,-488.79,0.00021043,2]
[372600643,1752700251327,-3516.53,0.00021043,2]
[372600644,1752700251338,-460.0,0.00021043,2]
[372600645,1752700251348,-664.92,0.00021043,2]
[372600646,1752700251358,-460.0,0.00021043,2]
[372600647,1752700251368,-460.0,0.00021044,2]
[372600648,1752700251378,-460.0,0.00021047,2]
[372600649,1752700251388,-460.0,0.00021047,2]
[372600650,1752700251398,-2500.0,0.00021064,2]
[372600651,1752700251407,-2755.65872215,0.00021072,4]
[372600652,1752700251417,-500.0,0.00021073,2]
[372600653,1752700251427,-500.0,0.00021073,2]
[372600654,1752700251436,-500.0,0.00021073,2]
[372600655,1752700251446,-500.0,0.00021073,2]
[372600656,1752700251455,-500.0,0.00021073,2]
[372600657,1752700251470,-500.0,0.00021073,2]
[372600658,1752700251479,-1016.61195744,0.00021113,2]
[372600659,1752700251489,-460.0,0.00021209,2]
[372600660,1752700251498,-460.0,0.00021209,2]
[372600661,1752700251508,-210.69197606,0.00021209,2]
[372600662,1752700251517,-460.0,0.00021209,2]
[372600663,1752700251527,-460.0,0.00021209,2]
[372600664,1752700251536,-1017.13,0.00021209,2]
[372600665,1752700251547,-1944.16,0.00021209,2]
[372600666,1752700251558,-3094.04,0.00021209,2]
[372600667,1752700251567,-460.0,0.00021209,2]
[372600668,1752700251578,-460.0,0.00021209,2]
[372600669,1752700251587,-460.0,0.00021209,2]
[372600670,1752700251596,-460.0,0.00021209,2]
[372600671,1752700251606,-1107.75,0.00021209,2]
[372600672,1752700251616,-460.0,0.00021209,2]
[372600673,1752700251626,-502.62,0.00021209,2]
[372600674,1752700251635,-460.0,0.00021209,2]
[372600675,1752700251645,-460.0,0.00021209,2]
[372600676,1752700251654,-460.0,0.00021209,2]
[372600677,1752700251664,-1224.39,0.00021209,2]
[372600678,1752700251674,-261.72,0.00021209,2]
[372600679,1752700251684,-1081.46,0.00021209,2]
[372600680,1752700251693,-1328.52,0.00021209,2]
[372600681,1752700251703,-360.0,0.00021282,2]
[372600682,1752700251713,-460.0,0.00021306,2]
[372600683,1752700251723,-500.0,0.00021306,2]
[372600684,1752700251733,-644.36,0.00021306,2]
[372600685,1752700251743,-2763.5,0.00021306,2]
[372600686,1752700251752,-460.0,0.00021306,2]
[372600687,1752700251762,-460.0,0.00021306,2]
[372600688,1752700251772,-318.01,0.00021306,2]
[372600689,1752700251782,-1051.93,0.00021306,2]
[372600690,1752700251792,-460.0,0.00021306,2]
[372600691,1752700251802,-460.0,0.00021306,2]
[372600692,1752700251811,-460.0,0.00021306,2]
[372600693,1752700251821,-2606.4,0.00021306,2]
[372600694,1752700251830,-2755.65872215,0.00021314,5]
[372600695,1752700251839,-460.0,0.00021317,2]
[372600696,1752700251848,-460.0,0.00021317,2]
[372600697,1752700251857,-460.0,0.00021317,2]
[372600698,1752700251868,-460.0,0.00021317,2]
[372600699,1752700251879,-460.0,0.00021317,2]
[372600700,1752700251889,-460.0,0.00021317,2]
[372600701,1752700251899,-460.0,0.00021317,2]
[372600702,1752700251908,-460.0,0.00021317,2]
[372600703,1752700251918,-227.95,0.00021317,2]
[372600704,1752700251929,-488.79,0.00021317,2]
[372600705,1752700251938,-3516.53,0.00021317,2]
[372600706,1752700251948,-460.0,0.00021317,2]
[372600707,1752700251958,-664.92,0.00021317,2]
[372600708,1752700251970,-460.0,0.00021317,2]
[372600709,1752700251979,-460.0,0.00021318,2]
[372600710,1752700251990,-460.0,0.00021321,2]
[372600711,1752700251999,-209.53,0.00021321,2]
[372600712,1752700252009,-5000.0,0.00021346,2]
[372600713,1752700252019,-460.0,0.00021483,2]
[372600714,1752700252028,-578.68,0.00021483,2]
[372600715,1752700252037,-460.0,0.00021483,2]
[372600716,1752700252047,-460.0,0.00021483,2]
[372600717,1752700252057,-1017.13,0.00021483,2]
[372600718,1752700252068,-1944.16,0.00021483,2]
[372600719,1752700252078,-3094.04,0.00021483,2]
[372600720,1752700252087,-460.0,0.00021483,2]
[372600721,1752700252097,-460.0,0.00021483,2]
[372600722,1752700252107,-460.0,0.00021483,2]
[372600723,1752700252117,-460.0,0.00021483,2]
[372600724,1752700252126,-1107.75,0.00021483,2]
[372600725,1752700252138,-460.0,0.00021483,2]
[372600726,1752700252153,-502.62,0.00021483,2]
[372600727,1752700252168,-192.12,0.00021483,2]
[372600728,1752700252183,-460.0,0.00021483,2]
[372600729,1752700252197,-460.0,0.00021483,2]
[372600730,1752700252208,-1224.39,0.00021483,2]
[372600731,1752700252223,-1081.46,0.00021483,2]
[372600732,1752700252237,-1328.52,0.00021483,2]
[372600733,1752700252250,-150000.0,0.00021483,2]
[372600734,1752700252264,-150000.0,0.00021483,2]
[372600735,1752700252276,-137224.3795849,0.00021483,2]
[372600736,1752700252290,-2755.65872215,0.00021555,5]
[372600737,1752700252304,-454.97942182,0.00021564,2]
[372600738,1752700252317,-460.0,0.0002158,2]
[372600739,1752700252331,-500.0,0.0002158,2]
[372600740,1752700252344,-644.36,0.0002158,2]
[372600741,1752700252356,-2763.5,0.0002158,2]
[372600742,1752700252369,-460.0,0.0002158,2]
[372600743,1752700252383,-460.0,0.0002158,2]
[372600744,1752700252397,-1051.93,0.0002158,2]
[372600745,1752700252409,-460.0,0.0002158,2]
[372600746,1752700252421,-460.0,0.0002158,2]
[372600747,1752700252434,-2606.4,0.0002158,2]
[372600748,1752700252448,-460.0,0.00021591,2]
[372600749,1752700252462,-460.0,0.00021591,2]
[372600750,1752700252479,-460.0,0.00021591,2]
[372600751,1752700252493,-460.0,0.00021591,2]
[372600752,1752700252507,-460.0,0.00021591,2]
[372600753,1752700252520,-460.0,0.00021591,2]
[372600754,1752700252534,-460.0,0.00021591,2]
[372600755,1752700252549,-460.0,0.00021591,2]
[372600756,1752700252562,-488.79,0.00021591,2]
[372600757,1752700252574,-3516.53,0.00021591,2]
[372600758,1752700252584,-460.0,0.00021591,2]
[372600759,1752700252596,-664.92,0.00021591,2]
[372600760,1752700252609,-460.0,0.00021591,2]
[372600761,1752700252624,-460.0,0.00021592,2]
[372600762,1752700252637,-460.0,0.00021595,2]
[372600763,1752700252648,-3000.0,0.00021612,2]
[372600764,1752700252660,-295.03086447,0.00021618,2]
[372600765,1752700252672,-500.0,0.00021621,2]
[372600766,1752700252685,-1000.0,0.00021621,2]
[372600767,1752700252696,-500.0,0.00021621,2]
[372600768,1752700252707,-849.79101408,0.00021621,2]
[372600769,1752700252718,-1000.0,0.00021621,2]
[372600770,1752700252730,-460.0,0.00021757,2]
[372600771,1752700252742,-460.0,0.00021757,2]
[372600772,1752700252753,-460.0,0.00021757,2]
[372600773,1752700252765,-1017.13,0.00021757,2]
[372600774,1752700252776,-1944.16,0.00021757,2]
[372600775,1752700252789,-3094.04,0.00021757,2]
[372600776,1752700252801,-460.0,0.00021757,2]
[372600777,1752700252813,-516.39,0.00021757,2]
[372600778,1752700252823,-460.0,0.00021757,2]
[372600779,1752700252835,-460.0,0.00021757,2]
[372600780,1752700252846,-1107.75,0.00021757,2]
[372600781,1752700252858,-460.0,0.00021757,2]
[372600782,1752700252873,-502.62,0.00021757,2]
[372600783,1752700252885,-460.0,0.00021757,2]
[372600784,1752700252897,-460.0,0.00021757,2]
[372600785,1752700252909,-1224.39,0.00021757,2]
[372600786,1752700252920,-1081.46,0.00021757,2]
[372600787,1752700252931,-1328.52,0.00021757,2]
[372600788,1752700252945,-2755.65872215,0.00021797,6]
[372600789,1752700252957,-460.0,0.0002183,2]
[372600790,1752700252968,-500.0,0.00021854,2]
[372600791,1752700252979,-500.0,0.00021854,2]
[372600792,1752700252991,-644.36,0.00021854,2]
[372600793,1752700253002,-2763.5,0.00021854,2]
[372600794,1752700253014,-460.0,0.00021854,2]
[372600795,1752700253026,-460.0,0.00021854,2]
[372600796,1752700253038,-1051.93,0.00021854,2]
[372600797,1752700253050,-460.0,0.00021854,2]
[372600798,1752700253061,-460.0,0.00021854,2]
[372600799,1752700253072,-2606.4,0.00021854,2]
[372600800,1752700253084,-460.0,0.00021865,2]
[372600801,1752700253095,-460.0,0.00021865,2]
[372600802,1752700253107,-460.0,0.00021865,2]
[372600803,1752700253119,-460.0,0.00021865,2]
[372600804,1752700253131,-460.0,0.00021865,2]
[372600805,1752700253142,-460.0,0.00021865,2]
[372600806,1752700253153,-460.0,0.00021865,2]
[372600807,1752700253165,-460.0,0.00021865,2]
[372600808,1752700253176,-488.79,0.00021865,2]
[372600809,1752700253188,-3516.53,0.00021865,2]
[372600810,1752700253201,-460.0,0.00021865,2]
[372600811,1752700253212,-664.92,0.00021865,2]
[372600812,1752700253224,-460.0,0.00021865,2]
[372600813,1752700253236,-460.0,0.00021866,2]
[372600814,1752700253247,-460.0,0.00021869,2]
[372600815,1752700253260,-500.0,0.00021917,2]
[372600816,1752700253272,-500.0,0.00021917,2]
[372600817,1752700253283,-500.0,0.00021917,2]
[372600818,1752700253294,-500.0,0.00021917,2]
[372600819,1752700253306,-500.0,0.00021917,2]
[372600820,1752700253318,-500.0,0.00021917,2]
[372600821,1752700253329,-536.59,0.00021917,2]
[372600822,1752700253340,-200.0,0.00021918,2]
[372600823,1752700253351,-158.03292145,0.0002192,4]
[372600824,1752700253363,-158.03,0.0002192,4]
[372600825,1752700253375,-159.13686405,0.0002192,4]
[372600826,1752700253386,-159.13,0.0002192,4]
[372600827,1752700253399,-1016.61195744,0.00021931,2]
[372600828,1752700253411,-2283.02,0.00022,7]
[372600829,1752700253423,-24441.64,0.00022,2]
[372600830,1752700253435,-460.0,0.00022031,2]
[372600831,1752700253447,-460.0,0.00022031,2]
[372600832,1752700253459,-467.96,0.00022031,2]
[372600833,1752700253474,-1017.13,0.00022031,2]
[372600834,1752700253485,-1944.16,0.00022031,2]
[372600835,1752700253497,-3094.04,0.00022031,2]
[372600836,1752700253510,-460.0,0.00022031,2]
[372600837,1752700253658,-460.0,0.00022031,2]
[372600838,1752700253684,-460.0,0.00022031,2]
[372600839,1752700253695,-1107.75,0.00022031,2]
[372600840,1752700253706,-460.0,0.00022031,2]
[372600841,1752700253718,-502.62,0.00022031,2]
[372600842,1752700253728,-460.0,0.00022031,2]
[372600843,1752700253737,-460.0,0.00022031,2]
[372600844,1752700253747,-1224.39,0.00022031,2]
[372600845,1752700253758,-1081.46,0.00022031,2]
[372600846,1752700253768,-1328.52,0.00022031,2]
[372600847,1752700253778,-2755.65872215,0.00022038,6]
[372600848,1752700253788,-587.0,0.00022062,2]
[372600849,1752700253798,-500.0,0.00022128,2]
[372600850,1752700253808,-500.0,0.00022128,2]
[372600851,1752700253818,-644.36,0.00022128,2]
[372600852,1752700253828,-2763.5,0.00022128,2]
[372600853,1752700253837,-460.0,0.00022128,2]
[372600854,1752700253847,-460.0,0.00022128,2]
[372600855,1752700253857,-1051.93,0.00022128,2]
[372600856,1752700253867,-460.0,0.00022128,2]
[372600857,1752700253876,-460.0,0.00022128,2]
[372600858,1752700253887,-2606.4,0.00022128,2]
[372600859,1752700253897,-500.0,0.0002213,2]
[372600860,1752700253907,-199.65,0.00022139,2]
[372600861,1752700253916,-460.0,0.00022139,2]
[372600862,1752700253926,-460.0,0.00022139,2]
[372600863,1752700253936,-460.0,0.00022139,2]
[372600864,1752700253946,-460.0,0.00022139,2]
[372600865,1752700253955,-460.0,0.00022139,2]
[372600866,1752700253964,-460.0,0.00022139,2]
[372600867,1752700253974,-460.0,0.00022139,2]
[372600868,1752700253985,-488.79,0.00022139,2]
[372600869,1752700253996,-3516.53,0.00022139,2]
[372600870,1752700254005,-200.18,0.00022139,2]
[372600871,1752700254016,-664.92,0.00022139,2]
[372600872,1752700254026,-543.07,0.00022139,2]
[372600873,1752700254036,-460.0,0.0002214,2]
[372600874,1752700254045,-460.0,0.00022143,2]
[372600875,1752700254055,-1000.0,0.0002216,2]
[372600876,1752700254065,-1261.0,0.00022278,2]
[372600877,1752700254074,-2755.65872215,0.00022279,6]
[372600878,1752700254084,-460.0,0.00022305,2]
[372600879,1752700254094,-460.0,0.00022305,2]
[372600880,1752700254104,-1017.13,0.00022305,2]
[372600881,1752700254113,-1944.16,0.00022305,2]
[372600882,1752700254123,-3094.04,0.00022305,2]
[372600883,1752700254133,-460.0,0.00022305,2]
[372600884,1752700254143,-460.0,0.00022305,2]
[372600885,1752700254152,-460.0,0.00022305,2]
[372600886,1752700254162,-1107.75,0.00022305,2]
[372600887,1752700254171,-460.0,0.00022305,2]
[372600888,1752700254181,-502.62,0.00022305,2]
[372600889,1752700254190,-460.0,0.00022305,2]
[372600890,1752700254200,-309.38,0.00022305,2]
[372600891,1752700254209,-1224.39,0.00022305,2]
[372600892,1752700254219,-1081.46,0.00022305,2]
[372600893,1752700254228,-1328.52,0.00022305,2]
[372600894,1752700254238,-560.0,0.00022377,2]
[372600895,1752700254249,-500.0,0.00022402,2]
[372600896,1752700254259,-644.36,0.00022402,2]
[372600897,1752700254273,-2763.5,0.00022402,2]
[372600898,1752700254285,-460.0,0.00022402,2]
[372600899,1752700254299,-460.0,0.00022402,2]
[372600900,1752700254310,-1051.93,0.00022402,2]
[372600901,1752700254322,-460.0,0.00022402,2]
[372600902,1752700254332,-460.0,0.00022402,2]
[372600903,1752700254342,-2606.4,0.00022402,2]
[372600904,1752700254352,-25000.0,0.00022402,2]
[372600905,1752700254363,-21694.64805828,0.00022402,2]
[372600906,1752700254374,-151.0,0.00022402,2]
[372600907,1752700254385,-151.0,0.00022402,2]
[372600908,1752700254396,-151.0,0.00022402,2]
[372600909,1752700254406,-151.0,0.00022402,2]
[372600910,1752700254416,-151.0,0.00022402,2]
[372600911,1752700254426,-151.0,0.00022402,2]
[372600912,1752700254438,-151.0,0.00022402,2]
[372600913,1752700254449,-151.0,0.00022402,2]
[372600914,1752700254459,-175.8563729,0.00022402,2]
[372600915,1752700254472,-151.0,0.00022402,2]
[372600916,1752700254482,-207.4,0.00022402,2]
[372600917,1752700254491,-151.0,0.00022402,2]
[372600918,1752700254500,-151.0,0.00022402,2]
[372600919,1752700254511,-151.0,0.00022402,2]
[372600920,1752700254520,-166.46846412,0.00022402,2]
[372600921,1752700254530,-3801.642,0.00022402,2]
[372600922,1752700254541,-151.0,0.00022402,2]
[372600923,1752700254551,-151.0,0.00022402,2]
[372600924,1752700254560,-151.0,0.00022402,2]
[372600925,1752700254569,-151.0,0.00022402,2]
[372600926,1752700254579,-151.0,0.00022402,2]
[372600927,1752700254588,-151.0,0.00022402,2]
[372600928,1752700254597,-151.0,0.00022402,2]
[372600929,1752700254607,-151.0,0.00022402,2]
[372600930,1752700254616,-151.0,0.00022402,2]
[372600931,1752700254626,-151.0,0.00022402,2]
[372600932,1752700254635,-151.0,0.00022402,2]
[372600933,1752700254645,-500.0,0.00022402,2]
[372600934,1752700254654,-151.0,0.00022402,2]
[372600935,1752700254664,-151.0,0.00022402,2]
[372600936,1752700254674,-500.0,0.00022402,2]
[372600937,1752700254684,-151.0,0.00022402,2]
[372600938,1752700254694,-500.0,0.00022402,2]
[372600939,1752700254703,-151.0,0.00022402,2]
[372600940,1752700254713,-612.74679689,0.00022402,2]
[372600941,1752700254723,-151.0,0.00022402,2]
[372600942,1752700254733,-153.7637497,0.00022402,2]
[372600943,1752700254743,-460.0,0.00022413,2]
[372600944,1752700254752,-460.0,0.00022413,2]
[372600945,1752700254762,-460.0,0.00022413,2]
[372600946,1752700254772,-460.0,0.00022413,2]
[372600947,1752700254781,-460.0,0.00022413,2]
[372600948,1752700254791,-460.0,0.00022413,2]
[372600949,1752700254800,-460.0,0.00022413,2]
[372600950,1752700254810,-460.0,0.00022413,2]
[372600951,1752700254819,-488.79,0.00022413,2]
[372600952,1752700254829,-3516.53,0.00022413,2]
[372600953,1752700254839,-664.92,0.00022413,2]
[372600954,1752700254849,-1978.662656,0.00022417,7]
[372600955,1752700254858,-1978.662656,0.00022417,7]
[372600956,1752700254868,-460.0,0.00022417,2]
[372600957,1752700254877,-1978.662656,0.0002249,7]
[372600958,1752700254890,-1978.662656,0.0002249,7]
[372600959,1752700254899,-151.0,0.0002249,7]
[372600960,1752700254909,-214.40824756,0.000225,7]
[372600961,1752700254918,-160.0,0.000225,7]
[372600962,1752700254927,-12605.49131908,0.000225,7]
[372600963,1752700254938,-2755.65872215,0.00022521,7]
[372600964,1752700254949,-460.0,0.00022579,2]
[372600965,1752700254959,-460.0,0.00022579,2]
[372600966,1752700254971,-1017.13,0.00022579,2]
[372600967,1752700254980,-1944.16,0.00022579,2]
[372600968,1752700254989,-3094.04,0.00022579,2]
[372600969,1752700254999,-460.0,0.00022579,2]
[372600970,1752700255009,-460.0,0.00022579,2]
[372600971,1752700255018,-460.0,0.00022579,2]
[372600972,1752700255028,-1107.75,0.00022579,2]
[372600973,1752700255037,-460.0,0.00022579,2]
[372600974,1752700255047,-502.62,0.00022579,2]
[372600975,1752700255056,-460.0,0.00022579,2]
[372600976,1752700255066,-1224.39,0.00022579,2]
[372600977,1752700255075,-1081.46,0.00022579,2]
[372600978,1752700255085,-1328.52,0.00022579,2]
[372600979,1752700255094,-295.03086447,0.00022672,2]
[372600980,1752700255104,-500.0,0.00022676,2]
[372600981,1752700255114,-644.36,0.00022676,2]
[372600982,1752700255123,-2763.5,0.00022676,2]
[372600983,1752700255133,-460.0,0.00022676,2]
[372600984,1752700255143,-460.0,0.00022676,2]
[372600985,1752700255152,-1051.93,0.00022676,2]
[372600986,1752700255162,-460.0,0.00022676,2]
[372600987,1752700255171,-460.0,0.00022676,2]
[372600988,1752700255181,-2606.4,0.00022676,2]
[372600989,1752700255190,-460.0,0.00022687,2]
[372600990,1752700255200,-460.0,0.00022687,2]
[372600991,1752700255209,-460.0,0.00022687,2]
[372600992,1752700255219,-460.0,0.00022687,2]
[372600993,1752700255229,-460.0,0.00022687,2]
[372600994,1752700255239,-460.0,0.00022687,2]
[372600995,1752700255249,-460.0,0.00022687,2]
[372600996,1752700255258,-289.18479302,0.00022687,2]
[372600997,1752700255351,-170.81520698,0.00022687,2]
[372600998,1752700255361,-488.79,0.00022687,2]
[372600999,1752700255370,-3516.53,0.00022687,2]
[372601000,1752700255380,-623.86479302,0.00022687,2]
[372601001,1752700255493,-460.0,0.00019565,2]
[372601002,1752700255504,-476.78,0.00019839,2]
[372601003,1752700255515,-292.49,0.00019839,2]
[372601004,1752700255525,-476.78,0.00020113,2]
[372601005,1752700255535,-444.15,0.00020387,2]
[372601006,1752700255553,-907.48872984,0.00018841,2]
[372601007,1752700255563,-32.63,0.00020387,2]
[372601008,1752700255573,-476.78,0.00020661,2]
[372601009,1752700255583,-160.0,0.00020821,2]
[372601010,1752700255592,-337.37300507,0.00020935,2]
[372601011,1752700255605,-139.40699493,0.00020935,2]
[372601012,1752700255615,-476.78,0.00021209,2]
[372601013,1752700255625,-63.67670609,0.00021483,2]
[372601014,1752700255637,-413.10329391,0.00021483,2]
[372601015,1752700255649,-41.05520698,0.00022687,2]
[372601016,1752700255659,-187.22,0.00022691,2]
[372601017,1752700255670,-2755.65872215,0.00022762,7]
[372601018,1752700255680,-460.0,0.00022853,2]
[372601019,1752700255690,-460.0,0.00022853,2]
[372601020,1752700255700,-1017.13,0.00022853,2]
[372601021,1752700255709,-1197.091751,0.00022853,2]
[372601022,1752700255723,-259.93247712,0.00022853,2]
[372601023,1752700255965,-500.0,0.00018552,2]
[372601024,1752700255975,-255.61471254,0.00018552,2]
[372601025,1752700255985,-500.0,0.00018552,2]
[372601026,1752700255995,-500.0,0.00018552,2]
[372601027,1752700256004,-359.22605723,0.00018552,2]
[372601028,1752700256013,-500.0,0.00018552,2]
[372601029,1752700256023,-500.0,0.00018552,2]
[372601030,1752700256032,-500.0,0.00018552,2]
[372601031,1752700256042,-215.49754405,0.00018552,2]
[372601032,1752700256051,-500.0,0.00018552,2]
[372601033,1752700256060,-500.0,0.00018552,2]
[372601034,1752700256070,-500.0,0.00018552,2]
[372601035,1752700256079,-500.0,0.00018552,2]
[372601036,1752700256089,-548.65053124,0.00018552,2]
[372601037,1752700256098,-500.0,0.00018552,2]
[372601038,1752700256107,-500.0,0.00018552,2]
[372601039,1752700256117,-500.0,0.00018552,2]
[372601040,1752700256126,-500.0,0.00018552,2]
[372601041,1752700256135,-500.0,0.00018552,2]
[372601042,1752700256146,-500.0,0.00018552,2]
[372601043,1752700256155,-198.88989091,0.00018552,2]
[372601044,1752700256165,-500.0,0.00018552,2]
[372601045,1752700256174,-500.0,0.00018552,2]
[372601046,1752700256184,-424.58254791,0.00018552,2]
[372601048,1752700329641,-75.41745209,0.00018552,2]
[372601049,1752700329664,-166.66245631,0.00018553,2]
[372601050,1752700351928,-242.0799084,0.00018553,2]
[372601051,1752700360387,-242.0799084,0.00018548,2]
[372601052,1752700388410,-242.0799084,0.00018548,2]
[372601053,1752700407683,491.23908214,0.00018453,2]
[372601054,1752700409441,-242.0799084,0.00018501,2]
[372601055,1752700428166,-242.0799084,0.00018501,2]
[372601056,1752700433936,-7.07926531,0.00018501,2]
[372601057,1752700433960,-235.00064309,0.00018548,2]
[372601058,1752700447755,247.74332068,0.00018453,2]
[372601059,1752700448855,-242.0799084,0.00018501,2]
[372601060,1752700465344,-5.66341224,0.00018501,2]
[372601061,1752700465366,-236.41649616,0.00018548,2]
[372601062,1752700478390,-11.32682448,0.00018548,2]
[372601063,1752700478413,-230.75308392,0.00018553,2]
[372601064,1752700486323,495.48664128,0.00018453,2]
[372601065,1752700498617,-242.0799084,0.00018553,2]
[372601066,1752700510652,-242.0799084,0.00018552,2]
[372601067,1752700527570,-57.9200916,0.00018552,2]
[372601068,1752700527592,-184.1598168,0.00018552,2]
[372601070,1752700543965,-115.8401832,0.00018552,2]
[372601071,1752700543988,-126.2397252,0.00018552,2]
[372601072,1752700563353,-242.0799084,0.00018552,2]
[372601073,1752700570305,-242.0799084,0.00018552,2]
[372601074,1752700586071,-242.0799084,0.00018552,2]
[372601075,1752700617155,-242.0799084,0.00018552,2]
[372601077,1752700629178,-113.3523017,0.00018552,2]
[372601078,1752700629205,-128.7276067,0.00018552,2]
[372601079,1752700649440,312.359238,0.00013699,2]
[372601081,1752700657959,-242.0799084,0.00018552,2]
[372601082,1752700681395,-242.0799084,0.00018552,2]
[372601083,1752700720323,-3.62930219,0.00018552,2]
[372601084,1752700720496,-238.45060621,0.00018552,2]
[372601085,1752700721501,-109.06994339,0.00018552,2]
[372601086,1752700721524,-129.38066282,0.00018552,2]
[372601087,1752700742838,-42.24170495,0.00018552,2]
[372601088,1752700742860,-199.83820345,0.00018553,2]
[372601089,1752700744706,-199.83820345,0.00018552,2]
[372601090,1752700760638,-100.16179655,0.00018552,2]
[372601091,1752700760663,-141.91811185,0.00018553,2]
[372601092,1752700803900,-242.0799084,0.00018552,2]
[372601096,1752700806165,24900.0,0.00017698,2]
[372601097,1752700814460,-57.9200916,0.00018552,2]
[372601098,1752700814483,-184.1598168,0.00018552,2]
[372601099,1752700831526,-115.8401832,0.00018552,2]
[372601100,1752700831548,-126.2397252,0.00018552,2]
[372601101,1752700849585,-242.0799084,0.00018552,2]